bitfinex/quotes_BTCUSD_20240921
["timestamp","ask_amount","ask_price","bid_price","bid_amount"]
[1726890046426,0.62219583,62992.0,62991.0,0.00265]
[1726890047535,0.50344553,62992.0,62991.0,0.00265]
[1726890048200,0.59842416,62992.0,62991.0,0.00265]
[1726890049578,0.32793314,62992.0,62991.0,0.00265]
[1726890050762,0.25672367,62992.0,62991.0,0.00265]
[1726890051457,0.30418473,62992.0,62991.0,0.00265]
[1726890051680,0.32793314,62992.0,62991.0,0.00265]
[1726890051941,0.16487947,62992.0,62991.0,0.00265]
[1726890052136,0.09367,62992.0,62991.0,0.00265]
[1726890052394,0.00247,62992.0,62991.0,0.00265]
[1726890053739,0.00047,62992.0,62991.0,0.00165]
[1726890054217,0.00647,62992.0,62991.0,0.00265]
[1726890054683,0.00047,62992.0,62991.0,0.00165]
[1726890054901,0.00647,62992.0,62991.0,0.00265]
[1726890060297,0.00047,62992.0,62991.0,0.00165]
[1726890060513,0.00647,62992.0,62991.0,0.00265]
[1726890061271,0.00047,62992.0,62991.0,0.11992593]
[1726890061739,0.00047,62992.0,62991.0,0.00165]
[1726890062792,0.00147,62992.0,62991.0,0.00265]
[1726890063203,0.11827593,62993.0,62991.0,0.00165]
[1726890063599,0.003,62992.0,62991.0,0.00165]
[1726890064099,0.11827593,62993.0,62991.0,0.00165]
[1726890064333,0.004,62992.0,62991.0,0.00165]
[1726890065707,0.11827593,62993.0,62991.0,0.00165]
[1726890065954,0.002,62992.0,62991.0,0.00265]
[1726890066412,0.11827593,62993.0,62991.0,0.00265]
[1726890066413,0.11827593,62993.0,62991.0,0.00165]
[1726890066852,0.11827593,62993.0,62991.0,0.00265]
[1726890067938,0.11827593,62993.0,62991.0,0.00165]
[1726890069302,0.12027593,62993.0,62991.0,0.00265]
[1726890069741,0.11827593,62993.0,62991.0,0.00165]
[1726890070253,0.12027593,62993.0,62991.0,0.00265]
[1726890070496,0.002,62993.0,62991.0,0.00265]
[1726890070713,0.04745379,62995.0,62991.0,0.00165]
[1726890071156,0.002,62993.0,62991.0,0.00265]
[1726890073045,0.04745379,62996.0,62991.0,0.00165]
[1726890073305,0.07118068,62997.0,62991.0,0.00265]
[1726890073306,0.002,62995.0,62991.0,0.00265]
[1726890073804,0.07118068,62999.0,62991.0,0.00165]
[1726890073805,0.000825,62993.0,62991.0,0.00165]
[1726890074044,0.000825,62993.0,62991.0,0.09345]
[1726890074293,0.002825,62993.0,62991.0,0.09345]
[1726890074506,0.002825,62993.0,62991.0,0.09245]
[1726890074744,0.000825,62993.0,62991.0,0.09245]
[1726890074967,0.000825,62993.0,62991.0,0.09345]
[1726890076171,0.000825,62993.0,62991.0,0.09245]
[1726890076619,0.002825,62993.0,62991.0,0.09245]
[1726890094187,0.002825,62993.0,62991.0,0.00165]
[1726890096386,0.05034047,62993.0,62991.0,0.00165]
[1726890097941,0.002825,62993.0,62991.0,0.00165]
[1726890098141,0.05034047,62993.0,62991.0,0.00165]
[1726890099558,0.002825,62993.0,62991.0,0.00165]
[1726890100602,0.05034047,62993.0,62991.0,0.00165]
[1726890101227,0.002825,62993.0,62991.0,0.00165]
[1726890102103,0.05034047,62993.0,62991.0,0.00165]
[1726890102311,0.002825,62993.0,62991.0,0.00165]
[1726890102541,0.05034047,62993.0,62991.0,0.00165]
[1726890102896,0.002825,62993.0,62991.0,0.00165]
[1726890103143,0.05034047,62993.0,62991.0,0.00165]
[1726890103322,0.002825,62993.0,62991.0,0.00165]
[1726890103552,0.05034047,62993.0,62991.0,0.00165]
[1726890104158,0.002825,62993.0,62991.0,0.00165]
[1726890105978,0.05034047,62993.0,62991.0,0.00165]
[1726890106107,0.002825,62993.0,62991.0,0.00165]
[1726890111523,0.002825,62993.0,62992.0,0.096]
[1726890111524,0.000825,62993.0,62992.0,0.096]
[1726890113346,0.002825,62993.0,62992.0,0.096]
[1726890113831,0.000825,62993.0,62992.0,0.096]
[1726890114727,0.05034047,62993.0,62992.0,0.096]
[1726890116699,0.05043763,62993.0,62992.0,0.096]
[1726890117663,0.05044434,62993.0,62992.0,0.096]
[1726890118532,0.002825,62993.0,62992.0,0.096]
[1726890122052,0.002825,62993.0,62992.0,0.28205367]
[1726890122799,0.000825,62993.0,62992.0,0.28205367]
[1726890123234,0.000825,62993.0,62992.0,0.28605367]
[1726890123682,0.000825,62993.0,62992.0,0.28205367]
[1726890123907,0.000825,62993.0,62992.0,0.29005367]
[1726890125596,0.000825,62993.0,62992.0,0.37292833]
[1726890125831,0.000825,62993.0,62992.0,0.36175367]
[1726890126071,0.000825,62993.0,62992.0,0.40922799]
[1726890126302,0.000825,62993.0,62992.0,0.41622799]
[1726890126515,0.000825,62993.0,62992.0,0.36875367]
[1726890126754,0.000825,62993.0,62992.0,0.36175367]
[1726890127165,0.000825,62993.0,62992.0,0.36975367]
[1726890127907,0.000825,62993.0,62992.0,0.36175367]
[1726890129290,0.000825,62993.0,62992.0,0.37475367]
[1726890131352,0.000825,62993.0,62992.0,0.47675367]
[1726890132050,0.000825,62993.0,62992.0,0.47840367]
[1726890132270,0.000825,62993.0,62992.0,0.46540367]
[1726890132484,0.000825,62993.0,62992.0,0.47840367]
[1726890132722,0.000825,62993.0,62992.0,0.47640367]
[1726890133851,0.000825,62993.0,62992.0,0.5946796]
[1726890138695,0.000825,62993.0,62992.0,0.47640367]
[1726890138917,0.000825,62993.0,62992.0,0.5946796]
[1726890144325,0.000825,62993.0,62992.0,0.5966796]
[1726890144739,0.000825,62993.0,62992.0,0.5946796]
[1726890154243,0.000825,62993.0,62992.0,0.47640367]
[1726890154521,0.000825,62993.0,62992.0,0.45340367]
[1726890154729,0.000825,62993.0,62992.0,0.5716796]
[1726890154945,0.000825,62993.0,62992.0,0.45340367]
[1726890155832,0.000825,62993.0,62992.0,0.27770367]
[1726890157415,0.000825,62993.0,62992.0,0.37100367]
[1726890157866,0.000825,62993.0,62992.0,0.39400367]
[1726890166196,0.000825,62993.0,62992.0,0.5122796]
[1726890166473,0.000825,62993.0,62992.0,0.4189796]
[1726890167099,0.000825,62993.0,62992.0,0.30070367]
[1726890171806,0.000825,62993.0,62992.0,0.31788301]
[1726890178242,0.000825,62993.0,62992.0,0.30070367]
[1726890178486,0.000825,62993.0,62992.0,0.3178659]
[1726890178693,0.000825,62993.0,62992.0,0.31787326]
[1726890178916,0.000825,62993.0,62992.0,0.52944919]
[1726890181306,0.000825,62993.0,62992.0,0.5122796]
[1726890187820,0.000825,62993.0,62992.0,0.01465]
[1726890188243,0.096425,62993.0,62992.0,0.01465]
[1726890189486,0.096425,62993.0,62992.0,0.03765]
[1726890190330,0.096425,62993.0,62992.0,0.02465]
[1726890190525,0.096425,62993.0,62992.0,0.03765]
[1726890190749,0.096425,62993.0,62992.0,0.01465]
[1726890190964,0.096425,62993.0,62992.0,0.00165]
[1726890191638,0.099425,62993.0,62992.0,0.00165]
[1726890192109,0.096425,62993.0,62992.0,0.00165]
[1726890192332,0.099425,62993.0,62992.0,0.00265]
[1726890196030,0.003825,62993.0,62992.0,0.00265]
[1726890196688,0.000825,62993.0,62992.0,0.00165]
[1726890197208,0.002825,62993.0,62992.0,0.00265]
[1726890197883,0.000825,62993.0,62992.0,0.00165]
[1726890198141,0.002825,62993.0,62992.0,0.00265]
[1726890198601,0.000825,62993.0,62992.0,0.00165]
[1726890200416,0.002825,62993.0,62992.0,0.00265]
[1726890201107,0.000825,62993.0,62992.0,0.00165]
[1726890201570,0.002825,62993.0,62992.0,0.00265]
[1726890202044,0.000825,62993.0,62992.0,0.00165]
[1726890202272,0.000825,62993.0,62992.0,0.00265]
[1726890202498,0.002825,62993.0,62992.0,0.00265]
[1726890203595,0.000825,62993.0,62992.0,0.00165]
[1726890204032,0.002825,62993.0,62992.0,0.00165]
[1726890204465,0.000825,62993.0,62992.0,0.00165]
[1726890204911,0.003825,62993.0,62992.0,0.00165]
[1726890206192,0.003825,62993.0,62992.0,0.28140367]
[1726890207048,0.000825,62993.0,62992.0,0.28140367]
[1726890207280,0.000825,62993.0,62992.0,0.28540367]
[1726890207705,0.000825,62993.0,62992.0,0.28140367]
[1726890208138,0.000825,62993.0,62992.0,0.28940367]
[1726890209068,0.000825,62993.0,62992.0,0.28140367]
[1726890210415,0.000825,62993.0,62992.0,0.28840367]
[1726890211055,0.000825,62993.0,62992.0,0.28140367]
[1726890211263,0.000825,62993.0,62992.0,0.28840367]
[1726890216047,0.000825,62993.0,62992.0,0.28810367]
[1726890241452,0.000825,62993.0,62992.0,0.30500103]
[1726890242773,0.000825,62993.0,62992.0,0.30499022]
[1726890253578,0.000825,62993.0,62992.0,0.3049994]
[1726890256459,0.000825,62993.0,62992.0,0.28810367]
[1726890292473,0.000825,62993.0,62992.0,0.19440367]
[1726890292712,0.04845395,62993.0,62992.0,0.19440367]
[1726890292995,0.07226843,62993.0,62992.0,0.00835]
[1726890293248,0.19468291,62993.0,62992.0,0.00835]
[1726890293494,0.19468291,62993.0,62992.0,0.00135]
[1726890293495,0.49912579,62993.0,62992.0,0.00135]
[1726890293729,0.43334812,62993.0,62992.0,0.00135]
[1726890293963,0.43334812,62993.0,62992.0,0.00635]
[1726890294475,0.57612881,62993.0,62992.0,0.00635]
[1726890295196,0.57612881,62993.0,62992.0,0.00135]
[1726890295474,0.43334812,62993.0,62992.0,0.00235]
[1726890295742,0.57912881,62993.0,62992.0,0.00235]
[1726890295947,0.60695726,62993.0,62992.0,0.00235]
[1726890296189,0.60695726,62993.0,62992.0,0.00135]
[1726890296190,0.60395726,62993.0,62992.0,0.00135]
[1726890296430,0.60795726,62993.0,62991.0,0.00165]
[1726890296635,0.51477679,62992.0,62991.0,0.00165]
[1726890297152,0.52242963,62992.0,62991.0,0.00165]
[1726890297913,0.52042963,62992.0,62991.0,0.00165]
[1726890298870,0.52442963,62992.0,62991.0,0.00265]
[1726890299794,0.66696294,62992.0,62991.0,0.00265]
[1726890300039,0.66775932,62992.0,62991.0,0.00265]
[1726890300280,0.52527297,62992.0,62991.0,0.00265]
[1726890303453,0.52520277,62992.0,62991.0,0.00265]
[1726890303687,0.52720277,62992.0,62991.0,0.00265]
[1726890305080,0.62720277,62992.0,62991.0,0.00265]
[1726890306681,0.62802777,62992.0,62991.0,0.00265]
[1726890307107,0.64626174,62992.0,62991.0,0.00265]
[1726890311606,0.80501174,62992.0,62991.0,0.00265]
[1726890312523,0.80101174,62992.0,62991.0,0.00165]
[1726890313011,0.80501174,62992.0,62991.0,0.00265]
[1726890316328,1.44001174,62992.0,62991.0,0.00265]
[1726890316627,0.78945593,62988.0,62987.0,0.00165]
[1726890316842,0.89162726,62988.0,62987.0,0.00165]
[1726890317058,0.8991541,62988.0,62987.0,0.00165]
[1726890317293,1.5341941,62988.0,62987.0,0.00165]
[1726890318235,0.54121817,62988.0,62987.0,0.00265]
[1726890318685,0.35564797,62988.0,62987.0,0.00265]
[1726890318919,0.28458051,62988.0,62987.0,0.00265]
[1726890319167,0.15490377,62988.0,62987.0,0.00165]
[1726890319429,0.16890377,62988.0,62987.0,0.00265]
[1726890320383,0.06890377,62988.0,62987.0,0.00265]
[1726890320910,0.05490377,62988.0,62987.0,0.00165]
[1726890321135,0.05490377,62988.0,62987.0,0.00265]
[1726890321136,0.06890377,62988.0,62987.0,0.00265]
[1726890321606,0.05490377,62988.0,62987.0,0.00165]
[1726890322271,0.06890377,62988.0,62987.0,0.00265]
[1726890323142,0.06891356,62988.0,62987.0,0.00265]
[1726890323868,0.02152684,62988.0,62987.0,0.00265]
[1726890324371,0.06891356,62988.0,62987.0,0.00265]
[1726890327330,0.02152684,62988.0,62987.0,0.00265]
[1726890328531,0.09260693,62988.0,62987.0,0.00265]
[1726890329432,0.02152684,62988.0,62987.0,0.00265]
[1726890329651,0.0689539,62988.0,62987.0,0.00265]
[1726890330370,0.06896303,62988.0,62987.0,0.00265]
[1726890330843,0.09260693,62988.0,62987.0,0.00265]
[1726890331538,0.02152684,62988.0,62987.0,0.00265]
[1726890331747,0.09269657,62988.0,62987.0,0.00265]
[1726890331971,0.12152684,62988.0,62987.0,0.00265]
[1726890332328,0.37907073,62988.0,62987.0,0.00265]
[1726890333263,0.49753755,62988.0,62987.0,0.00265]
[1726890334419,0.37907073,62988.0,62987.0,0.00265]
[1726890337795,0.52123091,62988.0,62987.0,0.00265]
[1726890338003,0.52204522,62988.0,62987.0,0.00265]
[1726890338487,0.37939481,62988.0,62987.0,0.00265]
[1726890343844,0.49831058,62988.0,62987.0,0.00265]
[1726890347783,0.49826168,62988.0,62987.0,0.00265]
[1726890350209,0.27998575,62988.0,62987.0,0.00265]
[1726890350499,0.27998575,62988.0,62987.0,0.09745]
[1726890350670,0.27998575,62988.0,62987.0,0.17425]
[1726890351307,0.39899683,62988.0,62987.0,0.17425]
[1726890351717,0.38499683,62988.0,62987.0,0.17325]
[1726890352198,0.39899683,62988.0,62987.0,0.17425]
[1726890352631,0.38499683,62988.0,62987.0,0.17325]
[1726890353087,0.39299683,62988.0,62987.0,0.17425]
[1726890353998,0.36917158,62988.0,62987.0,0.17425]
[1726890354470,0.27398575,62988.0,62987.0,0.17425]
[1726890354694,0.36917158,62988.0,62987.0,0.17425]
[1726890355179,0.27398575,62988.0,62987.0,0.17425]
[1726890355413,0.01552684,62988.0,62987.0,0.17425]
[1726890355627,0.11068818,62988.0,62987.0,0.17425]
[1726890355861,0.36914709,62988.0,62987.0,0.17425]
[1726890356130,0.27398575,62988.0,62987.0,0.17425]
[1726890357020,0.3695567,62988.0,62987.0,0.17425]
[1726890357236,0.27439536,62988.0,62987.0,0.17425]
[1726890357446,0.3695567,62988.0,62987.0,0.17425]
[1726890357666,0.36943796,62988.0,62987.0,0.17425]
[1726890357892,0.01552684,62988.0,62987.0,0.17425]
[1726890359237,0.08688106,62988.0,62987.0,0.17425]
[1726890360903,0.01552684,62988.0,62987.0,0.17425]
[1726890364835,0.06308915,62988.0,62987.0,0.17425]
[1726890365037,0.01552684,62988.0,62987.0,0.17425]
[1726890365273,0.01552684,62988.0,62987.0,0.36030367]
[1726890366372,0.008,62988.0,62987.0,0.36030367]
[1726890367324,0.00165,62991.0,62989.0,0.0926]
[1726890367477,0.00165,62991.0,62990.0,0.14127593]
[1726890367604,0.00165,62991.0,62990.0,0.23387593]
[1726890368229,0.00165,62991.0,62990.0,0.3969296]
[1726890368428,0.00165,62991.0,62990.0,0.27865367]
[1726890368893,0.00265,62991.0,62990.0,0.28565367]
[1726890370239,0.00165,62991.0,62990.0,0.27865367]
[1726890370478,0.00265,62991.0,62990.0,0.28565367]
[1726890370910,0.00165,62991.0,62990.0,0.27865367]
[1726890371349,0.00265,62991.0,62990.0,0.28565367]
[1726890371792,0.00165,62991.0,62990.0,0.27865367]
[1726890372011,0.00165,62991.0,62990.0,0.28565367]
[1726890372229,0.00265,62991.0,62990.0,0.28565367]
[1726890373754,0.00165,62991.0,62990.0,0.27865367]
[1726890374460,0.00265,62991.0,62990.0,0.28465367]
[1726890375126,0.00165,62991.0,62990.0,0.27865367]
[1726890375332,0.00765,62991.0,62990.0,0.27965367]
[1726890376601,0.00165,62991.0,62990.0,0.27865367]
[1726890376965,0.00765,62991.0,62990.0,0.27965367]
[1726890378055,0.00165,62991.0,62990.0,0.27865367]
[1726890378248,0.00765,62991.0,62990.0,0.27965367]
[1726890380281,0.00765,62991.0,62990.0,0.1166]
[1726890380477,0.01538847,62991.0,62990.0,0.001]
[1726890389043,0.01538847,62991.0,62990.0,0.001825]
[1726890395407,0.06290253,62991.0,62990.0,0.001825]
[1726890398323,0.01538847,62991.0,62990.0,0.100025]
[1726890398568,0.01538847,62991.0,62990.0,0.30293963]
[1726890399222,0.00765,62991.0,62990.0,0.30293963]
[1726890401237,0.01542617,62991.0,62990.0,0.30293963]
[1726890401926,0.01542617,62991.0,62990.0,0.28607867]
[1726890402146,0.01542617,62991.0,62990.0,0.30313945]
[1726890403918,0.00765,62991.0,62990.0,0.30313945]
[1726890404522,0.01542617,62991.0,62990.0,0.30313945]
[1726890406240,0.00765,62991.0,62990.0,0.30313945]
[1726890406908,0.01542617,62991.0,62990.0,0.30313945]
[1726890413483,0.01542617,62991.0,62990.0,0.28607867]
[1726890413693,0.01542617,62991.0,62990.0,0.30309288]
[1726890414942,0.01542617,62991.0,62990.0,0.28607867]
[1726890415210,0.01542617,62991.0,62990.0,0.30308522]
[1726890417162,0.01542617,62991.0,62990.0,0.18787867]
[1726890419847,0.01542617,62991.0,62990.0,0.20488522]
[1726890420074,0.01542617,62991.0,62990.0,0.18787867]
[1726890420510,0.01542617,62991.0,62990.0,0.20488522]
[1726890420746,0.01542617,62991.0,62990.0,0.001825]
[1726890421645,0.01542617,62991.0,62990.0,0.099925]
[1726890426390,0.01542617,62991.0,62990.0,0.28597867]
[1726890438846,0.00765,62991.0,62990.0,0.28597867]
[1726890439066,0.01544871,62991.0,62990.0,0.18787867]
[1726890441346,0.06305527,62991.0,62990.0,0.18787867]
[1726890443667,0.0630706,62991.0,62990.0,0.18787867]
[1726890444501,0.01544871,62991.0,62990.0,0.18787867]
[1726890445564,0.01544871,62991.0,62990.0,0.001825]
[1726890449279,0.599676,62990.0,62988.0,0.023]
[1726890449516,0.64730206,62990.0,62988.0,0.023]
[1726890449694,0.00779869,62989.0,62988.0,0.023]
[1726890451049,0.05542475,62989.0,62988.0,0.023]
[1726890451455,0.05942475,62989.0,62988.0,0.023]
[1726890453657,0.05942437,62989.0,62988.0,0.023]
[1726890458734,0.05942437,62989.0,62988.0,0.023825]
[1726890463582,0.05942947,62989.0,62988.0,0.023825]
[1726890469442,0.10919869,62989.0,62988.0,0.000825]
[1726890469647,0.36830762,62989.0,62988.0,0.000825]
[1726890469781,0.46356918,62989.0,62988.0,0.000825]
[1726890470609,0.36830762,62989.0,62988.0,0.000825]
[1726890470971,0.27090762,62989.0,62988.0,0.000825]
[1726890472498,0.01179869,62989.0,62988.0,0.000825]
[1726890472891,0.08322971,62989.0,62988.0,0.000825]
[1726890473712,0.01179869,62989.0,62988.0,0.000825]
[1726890474902,0.0832256,62989.0,62988.0,0.000825]
[1726890477060,0.01179869,62989.0,62988.0,0.000825]
[1726890477489,0.0832208,62989.0,62988.0,0.000825]
[1726890478554,0.08321954,62989.0,62988.0,0.000825]
[1726890480822,0.01179869,62989.0,62988.0,0.000825]
[1726890481226,0.08321989,62989.0,62988.0,0.000825]
[1726890481922,0.01179869,62989.0,62988.0,0.000825]
[1726890482135,0.27061148,62989.0,62988.0,0.000825]
[1726890482341,0.36583956,62989.0,62988.0,0.000825]
[1726890482756,0.27061148,62989.0,62988.0,0.000825]
[1726890484009,0.36583956,62989.0,62988.0,0.000825]
[1726890484548,0.27061148,62989.0,62988.0,0.000825]
[1726890484709,0.01179869,62989.0,62988.0,0.000825]
[1726890485607,0.27059038,62989.0,62988.0,0.000825]
[1726890485991,0.01179869,62989.0,62988.0,0.000825]
[1726890486543,0.08321665,62989.0,62988.0,0.000825]
[1726890486749,0.01179869,62989.0,62988.0,0.000825]
[1726890487353,0.08321659,62989.0,62988.0,0.000825]
[1726890487570,0.27063611,62989.0,62988.0,0.000825]
[1726890487969,0.01179869,62989.0,62988.0,0.000825]
[1726890490027,0.08321572,62989.0,62988.0,0.000825]
[1726890490447,0.01179869,62989.0,62988.0,0.000825]
[1726890490663,0.05940839,62989.0,62988.0,0.000825]
[1726890491280,0.08321325,62989.0,62988.0,0.000825]
[1726890491459,0.01179869,62989.0,62988.0,0.000825]
[1726890491743,0.08321325,62989.0,62988.0,0.000825]
[1726890491957,0.05941033,62989.0,62988.0,0.000825]
[1726890492380,0.08321325,62989.0,62988.0,0.000825]
[1726890492610,0.01179869,62989.0,62988.0,0.000825]
[1726890492840,0.05941021,62989.0,62988.0,0.000825]
[1726890493235,0.01179869,62989.0,62988.0,0.000825]
[1726890494283,0.08321325,62989.0,62988.0,0.000825]
[1726890496042,0.0832219,62989.0,62988.0,0.000825]
[1726890496456,0.01179869,62989.0,62988.0,0.000825]
[1726890496701,0.08322312,62989.0,62988.0,0.000825]
[1726890496904,0.01179869,62989.0,62988.0,0.000825]
[1726890498166,0.27059404,62989.0,62988.0,0.000825]
[1726890498801,0.01179869,62989.0,62988.0,0.000825]
[1726890499011,0.2706032,62989.0,62988.0,0.000825]
[1726890499259,0.36583994,62989.0,62988.0,0.000825]
[1726890499484,0.2706032,62989.0,62988.0,0.000825]
[1726890501374,0.36583746,62989.0,62988.0,0.000825]
[1726890501602,0.2706032,62989.0,62988.0,0.000825]
[1726890502050,0.36583779,62989.0,62988.0,0.000825]
[1726890502975,0.36583716,62989.0,62988.0,0.000825]
[1726890503411,0.38964405,62989.0,62988.0,0.000825]
[1726890503661,0.2706032,62989.0,62988.0,0.000825]
[1726890504145,0.38964405,62989.0,62988.0,0.000825]
[1726890504365,0.36583825,62989.0,62988.0,0.000825]
[1726890504596,0.2706032,62989.0,62988.0,0.000825]
[1726890504843,0.36583814,62989.0,62988.0,0.000825]
[1726890505080,0.2706032,62989.0,62988.0,0.000825]
[1726890505754,0.38964405,62989.0,62988.0,0.000825]
[1726890506448,0.2706032,62989.0,62988.0,0.000825]
[1726890506949,0.38964405,62989.0,62988.0,0.000825]
[1726890507207,0.38955769,62989.0,62988.0,0.000825]
[1726890507702,0.38957827,62989.0,62988.0,0.000825]
[1726890508727,0.27052871,62989.0,62988.0,0.000825]
[1726890508955,0.36577043,62989.0,62988.0,0.000825]
[1726890509194,0.27052871,62989.0,62988.0,0.000825]
[1726890509406,0.36577019,62989.0,62988.0,0.000825]
[1726890509662,0.27052871,62989.0,62988.0,0.000825]
[1726890509847,0.38957827,62989.0,62988.0,0.000825]
[1726890510102,0.27052871,62989.0,62988.0,0.000825]
[1726890510576,0.38958975,62989.0,62988.0,0.000825]
[1726890510822,0.27052871,62989.0,62988.0,0.000825]
[1726890512110,0.27044115,62989.0,62988.0,0.000825]
[1726890512755,0.38871708,62989.0,62988.0,0.000825]
[1726890513186,0.48691708,62989.0,62988.0,0.000825]
[1726890514304,0.48291708,62989.0,62988.0,0.000825]
[1726890514590,0.48891708,62989.0,62988.0,0.001825]
[1726890515044,0.48291708,62989.0,62988.0,0.000825]
[1726890515281,0.48291708,62989.0,62988.0,0.001825]
[1726890515513,0.49691708,62989.0,62988.0,0.001825]
[1726890515976,0.85901329,62989.0,62988.0,0.001825]
[1726890517445,0.63969567,62989.0,62988.0,0.001825]
[1726890517642,1.00179188,62989.0,62988.0,0.001825]
[1726890518061,1.02206696,62989.0,62988.0,0.001825]
[1726890518285,1.12206696,62989.0,62988.0,0.001825]
[1726890520136,1.28260924,62989.0,62988.0,0.001825]
[1726890520560,1.12206696,62989.0,62988.0,0.001825]
[1726890521975,1.12406696,62989.0,62988.0,0.001825]
[1726890522253,1.00379103,62989.0,62988.0,0.001825]
[1726890522444,1.12206696,62989.0,62988.0,0.001825]
[1726890526438,1.12406696,62989.0,62988.0,0.001825]
[1726890531676,1.12533879,62989.0,62988.0,0.001825]
[1726890533381,1.12333879,62989.0,62988.0,0.001825]
[1726890534021,0.90500519,62989.0,62988.0,0.001825]
[1726890534444,0.9050057,62989.0,62988.0,0.001825]
[1726890534699,1.12542295,62989.0,62988.0,0.001825]
[1726890535474,0.90500215,62989.0,62988.0,0.001825]
[1726890535892,0.90500284,62989.0,62988.0,0.001825]
[1726890536141,0.90300284,62989.0,62988.0,0.001825]
[1726890536288,1.12344605,62989.0,62988.0,0.001825]
[1726890536501,1.12352868,62989.0,62988.0,0.001825]
[1726890536675,1.26603135,62989.0,62988.0,0.001825]
[1726890537289,0.90308028,62989.0,62988.0,0.001825]
[1726890537524,1.12359938,62989.0,62988.0,0.001825]
[1726890537735,0.90308449,62989.0,62988.0,0.001825]
[1726890537944,1.12360193,62989.0,62988.0,0.001825]
[1726890538166,1.12360193,62989.0,62987.0,0.00165]
[1726890538167,0.597851,62988.0,62987.0,0.00165]
[1726890538374,1.26266082,62988.0,62987.0,0.00165]
[1726890538587,1.27035657,62988.0,62987.0,0.00165]
[1726890538822,1.12785058,62988.0,62987.0,0.00165]
[1726890539017,1.27035657,62988.0,62987.0,0.00165]
[1726890540897,1.27037797,62988.0,62987.0,0.00165]
[1726890541162,1.28337797,62988.0,62987.0,0.00265]
[1726890541519,1.64636622,62988.0,62987.0,0.00265]
[1726890541721,1.2591315,62988.0,62987.0,0.00265]
[1726890541934,1.2461315,62988.0,62987.0,0.00165]
[1726890542360,1.2601315,62988.0,62987.0,0.00165]
[1726890542785,1.2461315,62988.0,62987.0,0.00165]
[1726890544507,1.3886539,62988.0,62987.0,0.00165]
[1726890544721,1.4026539,62988.0,62987.0,0.00265]
[1726890545158,1.3886539,62988.0,62987.0,0.00165]
[1726890545359,1.2461315,62988.0,62987.0,0.00165]
[1726890545829,1.2601315,62988.0,62987.0,0.00265]
[1726890546158,1.14185557,62988.0,62987.0,0.00265]
[1726890546351,1.2601315,62988.0,62987.0,0.00265]
[1726890546573,1.4026539,62988.0,62987.0,0.00265]
[1726890546982,1.2601315,62988.0,62987.0,0.00265]
[1726890547579,1.4026539,62988.0,62987.0,0.00265]
[1726890547997,1.2601315,62988.0,62987.0,0.00265]
[1726890548676,1.40273506,62988.0,62987.0,0.00265]
[1726890548836,1.2601315,62988.0,62987.0,0.00265]
[1726890549062,1.40273506,62988.0,62987.0,0.00265]
[1726890549260,1.76530909,62988.0,62987.0,0.00265]
[1726890549459,1.62271068,62988.0,62987.0,0.00265]
[1726890550515,1.62283701,62988.0,62987.0,0.00265]
[1726890553887,1.62448701,62988.0,62987.0,0.00265]
[1726890556278,1.34315741,62988.0,62987.0,0.00265]
[1726890556726,1.12322385,62988.0,62987.0,0.00265]
[1726890557002,0.9804519,62988.0,62987.0,0.00265]
[1726890557224,1.12322715,62988.0,62987.0,0.00265]
[1726890557656,1.34394068,62988.0,62987.0,0.00265]
[1726890558346,0.9804519,62988.0,62987.0,0.00265]
[1726890559198,1.34394068,62988.0,62987.0,0.00265]
[1726890559850,0.72119675,62988.0,62987.0,0.00265]
[1726890560103,0.98088595,62988.0,62987.0,0.00265]
[1726890560757,1.14158211,62988.0,62987.0,0.00265]
[1726890560956,1.50514699,62988.0,62987.0,0.00265]
[1726890561873,1.34445083,62988.0,62987.0,0.00265]
[1726890562564,0.98088595,62988.0,62987.0,0.00265]
[1726890562791,1.34445083,62988.0,62987.0,0.00265]
[1726890563374,1.1416246,62988.0,62987.0,0.00265]
[1726890563792,1.50518948,62988.0,62987.0,0.00265]
[1726890564984,1.34445083,62988.0,62987.0,0.00265]
[1726890565190,1.14163556,62988.0,62987.0,0.00265]
[1726890566490,1.50520044,62988.0,62987.0,0.00265]
[1726890567314,1.34445083,62988.0,62987.0,0.00265]
[1726890567556,1.50520921,62988.0,62987.0,0.00265]
[1726890567806,1.50481337,62988.0,62987.0,0.00265]
[1726890568031,1.34405545,62988.0,62987.0,0.00265]
[1726890570047,1.34465634,62988.0,62987.0,0.00265]
[1726890571628,0.98097158,62988.0,62987.0,0.00265]
[1726890571850,1.34465634,62988.0,62987.0,0.00265]
[1726890574991,1.34436587,62988.0,62987.0,0.00265]
[1726890578270,1.34423061,62988.0,62987.0,0.00265]
[1726890580057,1.34440824,62988.0,62987.0,0.00265]
[1726890580478,0.9808682,62988.0,62987.0,0.00265]
[1726890580698,1.34440824,62988.0,62987.0,0.00265]
[1726890583290,0.9808682,62988.0,62987.0,0.00265]
[1726890583507,1.34440824,62988.0,62987.0,0.00265]
[1726890583706,0.500101,62984.0,62971.0,0.0763]
[1726890583907,0.25967145,62983.0,62981.0,0.23812359]
[1726890584110,0.25967145,62983.0,62971.0,0.0763]
[1726890584111,0.25967145,62982.0,62971.0,0.0763]
[1726890584459,0.07144481,62976.0,62975.0,0.95265314]
[1726890584657,0.07144481,62976.0,62971.0,0.0763]
[1726890584793,0.04763085,62974.0,62973.0,0.001]
[1726890584993,0.0476308,62974.0,62973.0,0.001]
[1726890585206,0.05533999,62974.0,62973.0,0.001]
[1726890585616,0.00770919,62974.0,62973.0,0.001]
[1726890586021,0.00770919,62974.0,62971.0,0.0763]
[1726890586231,0.04763211,62973.0,62971.0,0.0763]
[1726890586676,0.00770914,62972.0,62971.0,0.0993]
[1726890586880,0.00770914,62972.0,62971.0,0.1915]
[1726890587308,0.05534125,62972.0,62971.0,0.1945]
[1726890587711,0.05534125,62972.0,62971.0,0.1915]
[1726890588152,0.05634125,62972.0,62971.0,0.1955]
[1726890589794,0.05534125,62972.0,62971.0,0.1915]
[1726890589991,0.05534481,62972.0,62971.0,0.1915]
[1726890590205,0.05534481,62972.0,62971.0,0.1955]
[1726890590606,0.00770914,62972.0,62971.0,0.1955]
[1726890591008,0.00770914,62972.0,62971.0,0.1915]